Cogmind - Beta 11 @@@ ROGUE MODE // 2022.03.17 @ 22:43:36 Player: LaGrange Result: Destroyed by Y-45 Defender with Beam Rifle Performance ------------- Evolutions (1) 500 Regions Visited (3) 600 Robots Destroyed (10) 50 Value Destroyed (334) 334 Prototype IDs (0) 0 Alien Tech Used (0) 0 Bonus (4) 4 TOTAL SCORE: 1488 Bonus ------- High Alert Combat Kills 4 Cogmind --------- Core Integrity 0/400 Matter 211/300 Energy 300/300 System Corruption 1% Temperature Cool (9) Movement Core (750) Ox14 Location -9/Storage Parts ------- > --- POWER (1) -------- (None) > --- PROPULSION (3) --- (None) > --- UTILITY (3) ------ High-capacity Storage Unit Large Battery Terrain Scan Processor > --- WEAPON (2) ------- (None) > --- INVENTORY (20) --- High-capacity Storage Unit Terrain Scan Processor Peak State ------------ > --- POWER ------------ Ion Engine > --- PROPULSION ------- Aluminum Leg Aluminum Leg Aluminum Leg > --- UTILITY ---------- Heat Sink Cooling System Propulsion Shielding > --- WEAPON ----------- Grenade Launcher Mining Laser > --- INVENTORY -------- Wheel Wheel EM Pulse Gun Medium Laser [Rating: 10] Favorites ----------- Power Ion Engine Engine Ion Engine Propulsion Aluminum Leg Leg Aluminum Leg Wheel Wheel Utility Heat Sink Device Heat Sink Storage Large Battery Processor Terrain Scan Processor Protection Propulsion Shielding Weapon Grenade Launcher Energy Gun Medium Laser Energy Cannon Particle Cannon Launcher Grenade Launcher Special Weapon Mining Laser Build | -11 -10 -9 -9 ------- Run | Scr Mat Mat Sto Slots Evolved 2 | . . 2 . Power . | . . . . Propulsion 1 | . . 1 . Utility 1 | . . 1 . Weapon . | . . . . Parts Attached 24 | 6 5 10 3 Power 3 | 1 1 1 . Engine 3 | 1 1 1 . Core . | . . . . Reactor . | . . . . Propulsion 7 | 2 . 5 . Treads . | . . . . Leg 5 | 2 . 3 . Wheel 2 | . . 2 . Hover . | . . . . Flight . | . . . . Utility 6 | 1 1 2 2 Device 2 | 1 . 1 . Storage 2 | . . 1 1 Processor 1 | . . . 1 Hackware . | . . . . Protection 1 | . 1 . . Artifact . | . . . . Weapon 8 | 2 3 2 1 Energy Gun 4 | 2 . 1 1 Energy Cannon 1 | . . 1 . Ballistic Gun . | . . . . Ballistic Cannon . | . . . . Launcher 2 | . 2 . . Special Weapon 1 | . 1 . . Impact Weapon . | . . . . Slashing Weapon . | . . . . Piercing Weapon . | . . . . Special Melee Weapon . | . . . . Unidentified Prototypes . | . . . . Parts Lost 16 | . . 14 2 Power 2 | . . 2 . Propulsion 6 | . . 5 1 Utility 3 | . . 3 . Weapon 5 | . . 4 1 Highest Loss Streak 12 | . . 12 2 To Critical Strikes . | . . . . Average Slot Usage (%) 69 | . 89 87 31 Engine 6 | . 14 8 . Leg 18 | . 28 27 . Wheel 2 | . . 1 4 Device 11 | . 14 18 . Storage 6 | . . 1 16 Processor 1 | . . . 5 Protection 4 | . 3 9 . Energy Gun 5 | . 14 1 4 Launcher 6 | . 10 8 . Special Weapon 4 | . 3 8 . Naked Turns . | . . . . Heaviest Build 43 | 8 12 13 43 Greatest Support 30 | 20 20 30 10 Greatest Overweight (x) 14 | . . 1 14 Average Overweight (x) . | . . . 2 Largest Inventory Capacity 20 | 5 5 5 20 Average Capacity 7 | 5 5 5 13 Most Carried 5 | 5 5 5 2 Average Carried 3 | 2 4 4 . Final Capacity 20 | 5 5 5 20 Final Carried 5 | 5 5 1 2 Class Distribution -------------------- 83% | Mutant 16% | Scavenger-Mutant Dominant Class ---------------- Mutant | -10/Materials Mutant | -9/Materials Mutant | -9/Storage Resources | -11 -10 -9 -9 ----------- Run | Scr Mat Mat Sto Matter Collected 432 | 260 30 142 . Remotely . | . . . . Salvage Created 172 | 35 70 67 . Parts 17 | 4 6 7 . Haulers Intercepted . | . . . . Recyclers Shooed 1 | . . 1 . Parts Field Recycled . | . . . . Retrieved Matter . | . . . . Parts Self-Destructed . | . . . . Prevented . | . . . . Kills | -11 -10 -9 -9 ------- Run | Scr Mat Mat Sto Combat Hostiles Destroyed 9 | 1 2 6 . Guns 1 | 1 . . . Cannons 1 | . . 1 . AOE 7 | . 2 5 . Classes Destroyed 3 | 1 1 1 . Watcher 1 | . 1 . . Swarmer 2 | . . 2 . Grunt 7 | 1 2 4 . Best Kill Streak 3 | 1 2 3 . Combat Bots Only 3 | 1 2 3 . Max Kills in Single Turn 2 | 1 2 1 . Gunslinging . | . . . . Exploded 2 | . 2 1 . Melee . | . . . . Uniques/NPCs Destroyed . | . . . . Combat | -11 -10 -9 -9 -------- Run | Scr Mat Mat Sto Damage Taken 1392 | 11 34 1098 249 Core 412 | 11 . 244 157 Absorbed by Shields . | . . . . Redirected to Shielding 54 | . . 54 . Core Remaining (%) 95 | 95 95 . . Volleys Fired 25 | 2 3 16 4 Largest 2 | 2 2 2 1 Hottest 113 | 90 80 113 40 Shots Fired 31 | 4 6 17 4 Gun 12 | 4 3 1 4 Cannon 2 | . . 2 . Launcher 17 | . 3 14 . Special . | . . . . Kinetic . | . . . . Thermal 7 | 2 3 2 . Explosive 17 | . 3 14 . Electromagnetic 7 | 2 . 1 4 Robot Hit Streak 8 | 2 8 7 3 Robot Miss Streak 1 | 1 . 1 1 Penetration Max . | . . . . Secondary Targets . | . . . . Shots Hit Robots 25 | 2 6 14 3 Core Hits 20 | 2 4 11 3 Critical Kills . | . . . . Critical Parts Destroyed . | . . . . Critical Strikes . | . . . . Melee Attacks . | . . . . Impact . | . . . . Slashing . | . . . . Piercing . | . . . . Sneak Attacks . | . . . . Combat Hostiles . | . . . . Follow-up Attacks . | . . . . Damage Inflicted 986 | 26 212 712 36 Guns 104 | 26 38 8 32 Cannons 40 | . . 40 . Explosions 832 | . 174 658 . Melee . | . . . . Ramming 10 | . . 6 4 Kinetic . | . . . . Thermal 91 | 13 38 40 . Explosive 832 | . 174 658 . Electromagnetic 53 | 13 . 8 32 Impact . | . . . . Slashing . | . . . . Piercing . | . . . . Highest Corruption 1 | . . 1 1 Average Corruption 1 | . . 1 1 Corruption Purged . | . . . . Corruption Blocked . | . . . . Effects 3 | . . 3 . Message Errors 1 | . . 1 . Matter Fused 2 | . . 2 . Overload Shots . | . . . . Overflow Damage 131 | . . 131 . Projectiles . | . . . . Explosions 131 | . . 131 . Melee . | . . . . Knockbacks . | . . . . Impact . | . . . . Kinetic . | . . . . Secondary . | . . . . Self-Inflicted Damage 308 | . . 307 1 Shots 7 | . . 7 . Rammed 3 | . . . 3 Targets Rammed 5 | . . 2 3 Kicked 2 | . . 2 . Crushed . | . . . . Highest Temperature 60 | 60 2 . 1 Average Temperature 20 | 31 2 . 1 Received Heat Transfer 351 | 6 18 228 99 Siege Activations . | . . . . Robots Corrupted . | . . . . Combat Hostiles . | . . . . Parts Fried . | . . . . Impact Corruptions . | . . . . Robots Melted . | . . . . Combat Hostiles . | . . . . Parts Melted . | . . . . Heat Transferred 222 | 37 111 74 . Parts Sabotaged . | . . . . Parts Stolen . | . . . . Parts Stripped . | . . . . Power Chain Reactions . | . . . . Missiles Intercepted . | . . . . Alert | -11 -10 -9 -9 ------- Run | Scr Mat Mat Sto Peak Influence 489 | 20 176 489 220 Initial 191 | . 13 74 191 Average 182 | 5 79 281 203 Maximum Alert Level 2 | . . 2 1 Low Security (%) 52 | 100 100 27 28 Level 1 40 | . . 53 71 Level 2 7 | . . 18 . Level 3 . | . . . . Level 4 . | . . . . Level 5 . | . . . . High Security . | . . . . Max Security . | . . . . Squads Dispatched 2 | . 1 1 . Investigation 1 | . . 1 . Extermination . | . . . . Reinforcement 1 | . 1 . . Assault . | . . . . Garrison . | . . . . Intercept . | . . . . Searches Triggered . | . . . . Construction Impeded . | . . . . Haulers Reinforced . | . . . . Active Scanning Responses . | . . . . Cargo Convoy Interrupts . | . . . . Stealth | -11 -10 -9 -9 --------- Run | Scr Mat Mat Sto Distress Signals 2 | . . 2 . Communications Jammed . | . . . . Distress Signals . | . . . . Times Spotted 26 | 1 5 18 2 Peak Tracking Total 9 | 1 2 9 1 Tactical Retreats 2 | . . 1 1 Traps | -11 -10 -9 -9 ------- Run | Scr Mat Mat Sto Traps Triggered . | . . . . Indirectly . | . . . . Trap Hack Attempts . | . . . . Triggered . | . . . . Disarmed . | . . . . Reprogrammed . | . . . . Reused . | . . . . Traps Extracted . | . . . . Installed . | . . . . Triggered . | . . . . Machines | -11 -10 -9 -9 ---------- Run | Scr Mat Mat Sto Machines Disabled 6 | . 1 5 . Max in Single Turn 2 | . 1 2 . Machines Sabotaged . | . . . . Garrisons Compromised . | . . . . Overloaded Fab Kills . | . . . . Hacking | -11 -10 -9 -9 --------- Run | Scr Mat Mat Sto Machines Accessed 5 | . 2 2 1 Terminals 5 | . 2 2 1 Fabricators . | . . . . Repair Stations . | . . . . Recycling Units . | . . . . Scanalyzers . | . . . . Garrison Access . | . . . . Total Hacks 14 | . 6 6 2 Successful 9 | . 3 4 2 Failed 5 | . 3 2 . Catastrophic 1 | . . 1 . Database Lockouts . | . . . . Manual 1 | . . 1 . Terminals 14 | . 6 6 2 Fabricators . | . . . . Repair Stations . | . . . . Recycling Units . | . . . . Scanalyzers . | . . . . Garrison Access . | . . . . Terminal Hacks 9 | . 3 4 2 Record 7 | . 2 4 1 Emergency Access Points 1 | . . . 1 Locate Traps 1 | . 1 . . Fabricator Hacks . | . . . . Repair Station Hacks . | . . . . Recycling Unit Hacks . | . . . . Scanalyzer . | . . . . Garrison Access Hacks . | . . . . Unauthorized Hacks . | . . . . Terminals . | . . . . Fabricators . | . . . . Repair Stations . | . . . . Recycling Units . | . . . . Scanalyzers . | . . . . Garrison Access . | . . . . Data Cores Recovered . | . . . . Used . | . . . . Hacking Detections 5 | . 2 2 1 Full Trace Events 1 | . . 1 . Feedback Events 1 | . . 1 . Corruption 1 | . . 1 . Feedback Blocked . | . . . . Robot Schematics Acquired . | . . . . Robots Built . | . . . . Authchips . | . . . . Time . | . . . . Total Robot Build Rating . | . . . . Part Schematics Acquired . | . . . . Parts Built . | . . . . Authchips . | . . . . Time . | . . . . Total Part Build Rating . | . . . . Parts Repaired . | . . . . Time . | . . . . Parts Recycled . | . . . . Recycled Matter . | . . . . Retrieved Matter . | . . . . Retrieved Components . | . . . . Parts Scanalyzed . | . . . . Part Schematics Acquired . | . . . . Parts Damaged . | . . . . Bothacking | -11 -10 -9 -9 ------------ Run | Scr Mat Mat Sto Used RIF Installer . | . . . . Robots Hacked . | . . . . Non-combat . | . . . . Combat . | . . . . Robot Hacks Applied . | . . . . Relay Couplers Released . | . . . . Fabnet Peak Effective % . | . . . . Robots Rewired . | . . . . Allies Hacked . | . . . . Hacks Repelled . | . . . . Allies | -11 -10 -9 -9 -------- Run | Scr Mat Mat Sto Total Allies . | . . . . Largest Group . | . . . . Highest-Rated Group . | . . . . Highest-Rated Ally . | . . . . Total Orders . | . . . . Ally Attacks . | . . . . Total Damage . | . . . . Kills . | . . . . Allies Corrupted . | . . . . Allies Melted . | . . . . Intel | -11 -10 -9 -9 ------- Run | Scr Mat Mat Sto Robot Analysis Total . | . . . . Derelict Logs Recovered . | . . . . Drone Launches . | . . . . Drone Recoveries . | . . . . Exploration | -11 -10 -9 -9 ------------- Run | Scr Mat Mat Sto Turns Passed 839 | 99 183 321 236 Spaces Moved 535 | 76 136 219 104 Core 57 | 17 . . 40 Treads . | . . . . Legs 373 | 59 136 178 . Wheels 105 | . . 41 64 Hover . | . . . . Flight . | . . . . Fastest Speed 50 | 50 120 80 50 Average Speed 127 | 104 120 112 182 Slowest Speed 750 | 120 120 120 750 Overloaded Moves . | . . . . Propulsion Burnouts . | . . . . Robots Hopped . | . . . . Cave-ins Triggered . | . . . . Exploration Rate (%) 18 | 9 31 24 11 Regions Visited 3 Branch Regions 1 Pre-discovered Areas . | . . . . Known Exits Taken . | . . . . Unknown Exits Taken 3 | 1 1 1 . Scrap Searched . | . . . . Spaces Dug . | . . . . Terrain Destroyed 123 | . 13 110 . Melee . | . . . . Projectile . | . . . . AOE 123 | . 13 110 . Terrain Rammed . | . . . . Walls Destroyed . | . . . . Machines Disabled . | . . . . Actions | -11 -10 -9 -9 --------- Run | Scr Mat Mat Sto Total 660 | 89 150 274 147 Wait 54 | . . 23 31 Move 532 | 75 135 218 104 Hop . | . . . . Pick Up 14 | 6 3 3 2 Fast Attach 11 | 5 1 3 2 Attach 9 | 1 . 7 1 Detach 1 | . . 1 . Swap 4 | . 4 . . Drop 5 | . 4 1 . Fire 25 | 2 3 16 4 Melee . | . . . . Ram 3 | . . . 3 Kick 2 | . . 2 . Crush . | . . . . Escape Stasis . | . . . . Rewire . | . . . . Trap . | . . . . Miscellaneous . | . . . . Route ------- -11/Scrapyard -10/Materials -9/Materials -9/Storage History --------- Turn | Location | Event 2 | -11/Scrapyard | Met Revision 17 66 | -11/Scrapyard | Discovered new exit (range 8) 100 | -11/Scrapyard | Entered Materials 271 | -10/Materials | Discovered new exit (range 9) 283 | -10/Materials | Entered another Materials area 283 | -9/Materials | Evolved 2 slots: Propulsion x1, Utility x1 306 | -9/Materials | Build established: Mutant 596 | -9/Materials | Discovered new exit (range 10) 599 | -9/Materials | Core integrity fell below 50% 604 | -9/Materials | Entered Storage 635 | -9/Storage | Lost 12 parts (1p4n3u4w) 829 | -9/Storage | Core integrity fell below 20% 840 | -9/Storage | Destroyed by Y-45 Defender with Beam Rifle Last Messages --------------- >>Access(Emergency) Found 2 emergency access doors: (50,58) (48,56) Map updated. 00695_ EM Pulse Gun destroyed. 00696_ Slammed into Y-45 Defender. 00698_ Destabilizing: Core damaged (-20). 00698_ Wheel destroyed. 00710_ Acquired Terrain Scan Processor. The Terrain Scan Processor is a processor, a type of utility that is destroyed if removed (these are marked with a colon in the parts list, as a reminder). 00712_ Acquired Hcp. Storage Unit. The Hcp. Storage Unit has expanded your inventory capacity. Items held in inventory do not count towards total mass and therefore cannot slow you down. 00721_ Acquired Hcp. Storage Unit. 00782_ Acquired Terrain Scan Processor. 00828_ Critical hit (Burn: +37). Map ----- +----------------------------------------------------+ | ?????????????????????????????????????????????????? | | ?????????????????????????????????????????????????? | | ?????????????????????????????????????????????????? | | ?????????????????????????????????????????????????? | | ?????????????????????????????????????????????????? | | ?????????????????????????????????????????????????? | | ?????????????????????????????????????????????????? | | ?????????????????????????????????????????????????? | | ?????????????????????????????????????????????????? | | ?????????????????????????????????????????????????? | | ???????????????????????? ???????????????????????? | | ???????????????????????? ???????????????????????? | | ???????????????????????? ???????????????????????? | | ???????????????????????? ???????????????????????? | | ???????????????????????? ?????###########???????? | | ???????????????????????? ?????# #???????? | | ???????????????????????? ?????# """ #???????? | | ???????????????????????? #????# """ #???????? | | ????????????????????????# #?#### """ #???????? | | ????????????????????????# #?#+## """ ##??????? | | ????????????????????????# #?# ## """ T#??????? | | ????????????????????????# #?# / "Y" ##??????? | | ????????????????#####???# #?#### """ #???????? | | ????????????????# ### ##########+######??????? | | ?????????? [[ # #??????? | | ?????????? u/ Y @ #??????? | | ????????????????# #??????? | | ????????????????# ####+################??????? | | ????????????????####??# #????????????????? | | ??????????????????????# #????????????????? | | ??????????????????????# #????????????????? | | ??????????????????????# #????????????????? | | ??????????????????????# #????????????????? | | ??????????????????????# #????????????????? | | ??????????????????????# #????????????????? | | ??????????????????????# #????????????????? | | ??????????????????????###########????????????????? | | ?????????????????????????????????????????????????? | | | | | | | | | | | | | | | | | | | | | | | | | +----------------------------------------------------+ Best States ------------- Heat Dissipation 60 Energy Generation 10 Energy Capacity 300 Matter Stores 300 Matter Capacity 300 Sight Range 16 Terrain Scan Density 85 Propulsion Shielding 33 Evasion (%) 55 Item Schematics ----------------- None Robot Schematics ------------------ None Fabricated ------------ Nothing Alien Tech Used ----------------- None Achievements -------------- None Challenges ------------ None Game ------ Seed AbsorptionMagneticBarrier Manual? 0 Play Time 00:50:57 Cumulative 1.6 hours Start 2022.03.17 @ 21:43:07 End 2022.03.17 @ 22:43:36 Sessions 2 Manual Loads 0 Difficulty Rogue Special Mode None Game No. 1 Rogue 1 Adventurer 0 Explorer 0 Win Type - Total 0 Types 0/0/0/0/0/0/0/0/0 Lore% 1 Gallery% 1 Achievement% 16 Wizard Run 0 Options --------- ASCII 0 Keyboard 1 Movement Numpad Keybinds 0 Fullscreen 1 Font 18/Terminus Map View 76x50 Tactical HUD 1 Map Filters NONE Filters NONE Steam 1 RUN: 5106dc9e-d4c3-45c3-86a9-f8a95e64ce3c